lending/lending_fUSD_20250819
["ID","MTS","AMOUNT","RATE_DAILY","PERIOD"]
[380168664,1755589915934,400.0,0.00030136,120]
[380168665,1755589916163,400.0,0.00030136,120]
[380168666,1755589916272,400.0,0.00030136,120]
[380168667,1755589916724,757.19,0.00030136,120]
[380168668,1755589916906,4743.14,0.00030136,120]
[380168669,1755589917059,400.0,0.00030136,120]
[380168670,1755589917190,1411.59,0.00030136,120]
[380168671,1755589917284,400.0,0.00030136,120]
[380168672,1755589917864,468.93,0.00030136,120]
[380168673,1755589917974,400.0,0.00030136,120]
[380168674,1755589918408,400.0,0.00030136,120]
[380168675,1755589918935,400.0,0.00030136,120]
[380168676,1755589919205,3327.99,0.00030136,120]
[380168677,1755589919313,400.0,0.00030136,120]
[380168678,1755589919436,400.0,0.00030136,120]
[380168679,1755589919676,429.66,0.00030136,120]
[380168680,1755589919843,1393.84,0.00030136,120]
[380168681,1755589920619,400.95,0.00030136,120]
[380168682,1755589920876,400.0,0.00030136,120]
[380168683,1755589921317,453.29,0.00030136,120]
[380168684,1755589921425,2199.68,0.00030136,120]
[380168685,1755589921754,400.0,0.00030136,120]
[380168686,1755589921857,400.0,0.00030136,120]
[380168687,1755589922475,3016.07,0.00030136,120]
[380168688,1755589922577,400.0,0.00030136,120]
[380168689,1755589922793,400.0,0.00030136,120]
[380168690,1755589922898,400.0,0.00030136,120]
[380168691,1755589924150,400.0,0.00030136,120]
[380168692,1755589925030,400.0,0.00030136,120]
[380168693,1755589925427,500.0,0.00030136,120]
[380168694,1755589925552,400.0,0.00030136,120]
[380168695,1755589925668,400.0,0.00030136,120]
[380168696,1755589925779,500.0,0.00030136,120]
[380168697,1755589925937,500.0,0.00030136,120]
[380168698,1755589926361,153.31365377,0.00030136,120]
[380168699,1755589926487,6017.71,0.00030136,120]
[380168700,1755589927309,437.32,0.00030136,120]
[380168701,1755589927425,2531.92,0.00030136,120]
[380168702,1755589927538,400.0,0.00030136,120]
[380168703,1755589927660,400.0,0.00030136,120]
[380168704,1755589927943,5977.64,0.00030136,120]
[380168705,1755589928079,3358.55,0.00030136,120]
[380168706,1755589928514,400.0,0.00030136,120]
[380168707,1755589928968,400.0,0.00030136,120]
[380168708,1755589929204,1121.69,0.00030136,120]
[380168709,1755589929476,400.0,0.00030136,120]
[380168710,1755589929587,400.0,0.00030136,120]
[380168711,1755589929854,400.0,0.00030136,120]
[380168712,1755589930090,400.0,0.00030136,120]
[380168713,1755589930251,400.0,0.00030136,120]
[380168714,1755589930392,400.0,0.00030136,120]
[380168715,1755589931250,400.0,0.00030136,120]
[380168716,1755589931490,400.0,0.00030136,120]
[380168717,1755589931594,401.50569947,0.00030136,120]
[380168718,1755589931726,1413.41,0.00030136,120]
[380168719,1755589931855,1245.15,0.00030136,120]
[380168720,1755589932993,400.0,0.00030136,120]
[380168721,1755589933109,1351.57,0.00030136,120]
[380168722,1755589933349,1189.3,0.00030136,120]
[380168723,1755589935162,838.51,0.00030136,120]
[380168724,1755589935383,2440.45,0.00030136,120]
[380168725,1755589935645,5021.28,0.00030136,120]
[380168726,1755589935979,8819.65,0.00030136,120]
[380168727,1755589936191,643.8,0.00030136,120]
[380168728,1755589936902,716.4,0.00030136,120]
[380168729,1755589937239,2141.21,0.00030136,120]
[380168730,1755589937425,400.0,0.00030136,120]
[380168731,1755589937576,500.0,0.00030136,120]
[380168732,1755589937718,400.0,0.00030136,120]
[380168733,1755589938041,500.0,0.00030136,120]
[380168734,1755589938205,500.0,0.00030136,120]
[380168735,1755589938358,500.0,0.00030136,120]
[380168736,1755589938514,500.0,0.00030136,120]
[380168737,1755589938757,500.0,0.00030136,120]
[380168738,1755589938917,400.0,0.00030136,120]
[380168739,1755589939058,500.0,0.00030136,120]
[380168740,1755589939226,500.0,0.00030136,120]
[380168741,1755589939402,500.0,0.00030136,120]
[380168742,1755589939558,500.0,0.00030136,120]
[380168743,1755589939700,2531.03,0.00030136,120]
[380168744,1755589939838,500.0,0.00030136,120]
[380168745,1755589940001,500.0,0.00030136,120]
[380168746,1755589940166,500.0,0.00030136,120]
[380168747,1755589940517,370.55704623,0.00030136,120]
[380168748,1755589941582,400.0,0.00030136,120]
[380168749,1755589941767,400.0,0.00030136,120]
[380168750,1755589942473,3019.5,0.00030136,120]
[380168751,1755589942854,3480.54,0.00030136,120]
[380168752,1755589943143,780.27,0.00030136,120]
[380168753,1755589943819,2219.57,0.00030136,120]
[380168754,1755589943997,400.0,0.00030136,120]
[380168755,1755589944598,400.0,0.00030136,120]
[380168756,1755589944705,400.0,0.00030136,120]
[380168757,1755589944850,2277.18,0.00030136,120]
[380168758,1755589946087,517.05,0.00030136,120]
[380168759,1755589946956,400.0,0.00030136,120]
[380168760,1755589947135,400.0,0.00030136,120]
[380168761,1755589947750,3175.55,0.00030136,120]
[380168762,1755589947845,400.0,0.00030136,120]
[380168763,1755589948229,400.0,0.00030136,120]
[380168764,1755589948701,2383.54,0.00030136,120]
[380168765,1755589948794,3101.51,0.00030136,120]
[380168766,1755589948910,530.03,0.00030136,120]
[380168767,1755589949307,4007.42,0.00030136,120]
[380168768,1755589949909,400.0,0.00030136,120]
[380168769,1755589949957,1674.08,0.00030136,120]
[380168770,1755589950462,2341.06,0.00030136,120]
[380168771,1755589951227,400.0,0.00030136,120]
[380168772,1755589951298,920.05,0.00030136,120]
[380168773,1755589951886,400.0,0.00030136,120]
[380168774,1755589951982,400.0,0.00030136,120]
[380168775,1755589952122,3821.06,0.00030136,120]
[380168776,1755589952238,400.0,0.00030136,120]
[380168777,1755589952381,2208.5,0.00030136,120]
[380168778,1755589952630,400.0,0.00030136,120]
[380168779,1755589952832,3605.29,0.00030136,120]
[380168780,1755589952981,400.0,0.00030136,120]
[380168781,1755589953477,791.35,0.00030136,120]
[380168782,1755589953687,400.0,0.00030136,120]
[380168783,1755589954080,400.0,0.00030136,120]
[380168784,1755589954715,525.27,0.00030136,120]
[380168785,1755589954772,1257.38,0.00030136,120]
[380168786,1755589954904,400.0,0.00030136,120]
[380168787,1755589955058,400.0,0.00030136,120]
[380168788,1755589955432,2976.15,0.00030136,120]
[380168789,1755589956517,400.0,0.00030136,120]
[380168790,1755589956628,400.0,0.00030136,120]
[380168791,1755589956827,1134.76,0.00030136,120]
[380168792,1755589956877,555.8,0.00030136,120]
[380168793,1755589957577,400.0,0.00030136,120]
[380168794,1755589957620,911.89,0.00030136,120]
[380168795,1755589958136,2310.48,0.00030136,120]
[380168796,1755589958460,3576.94,0.00030136,120]
[380168797,1755589958886,5405.59,0.00030136,120]
[380168798,1755589959002,2379.81,0.00030136,120]
[380168799,1755589959414,1948.22,0.00030136,120]
[380168800,1755589959667,400.0,0.00030136,120]
[380168801,1755589960150,578.84,0.00030136,120]
[380168802,1755589960196,400.0,0.00030136,120]
[380168803,1755589960447,567.36,0.00030136,120]
[380168804,1755589961103,400.0,0.00030136,120]
[380168805,1755589961173,400.0,0.00030136,120]
[380168806,1755589961469,400.0,0.00030136,120]
[380168807,1755589961876,910.76,0.00030136,120]
[380168808,1755589961924,3715.68,0.00030136,120]
[380168809,1755589962755,512.7,0.00030136,120]
[380168810,1755589962867,1152.6,0.00030136,120]
[380168811,1755589962917,3808.17,0.00030136,120]
[380168812,1755589964872,1774.47,0.00030136,120]
[380168813,1755589964924,1535.82,0.00030136,120]
[380168814,1755589965465,400.0,0.00030136,120]
[380168815,1755589965988,477.48,0.00030136,120]
[380168816,1755589966040,2431.13,0.00030136,120]
[380168817,1755589966358,400.0,0.00030136,120]
[380168818,1755589967371,986.46,0.00030136,120]
[380168819,1755589967423,400.0,0.00030136,120]
[380168820,1755589967988,18471.32,0.00030136,120]
[380168821,1755589968237,1425.17,0.00030136,120]
[380168822,1755589968922,838.0,0.00030136,120]
[380168823,1755589969431,956.86,0.00030136,120]
[380168824,1755589969474,400.0,0.00030136,120]
[380168825,1755589969534,400.0,0.00030136,120]
[380168826,1755589969605,964.25,0.00030136,120]
[380168827,1755589969995,2618.87,0.00030136,120]
[380168828,1755589970268,400.0,0.00030136,120]
[380168829,1755589970524,400.0,0.00030136,120]
[380168830,1755589970831,3175.53,0.00030136,120]
[380168831,1755589970941,2383.63,0.00030136,120]
[380168832,1755589971066,1670.15,0.00030136,120]
[380168833,1755589971520,3196.96,0.00030136,120]
[380168834,1755589972282,2484.77,0.00030136,120]
[380168835,1755589972425,612.22,0.00030136,120]
[380168836,1755589973163,320.1257868,0.00030037,120]
[380168837,1755589973210,400.0,0.00030136,120]
[380168838,1755589973337,2284.32,0.00030136,120]
[380168839,1755589973548,400.0,0.00030136,120]
[380168840,1755589973917,400.0,0.00030136,120]
[380168841,1755589974153,14382.23,0.00030137,120]
[380168842,1755589974236,400.0,0.00030136,120]
[380168843,1755589974800,1006.77,0.00030136,120]
[380168844,1755589974947,5951.33,0.00030136,120]
[380168845,1755589975489,786.77,0.00030136,120]
[380168846,1755589975612,2723.9,0.00030136,120]
[380168847,1755589975733,400.0,0.00030136,120]
[380168848,1755589975798,901.55,0.00030136,120]
[380168849,1755589976024,527.87,0.00030136,120]
[380168850,1755589976882,3228.68,0.00030136,120]
[380168851,1755589978656,661.6,0.00030136,120]
[380168852,1755589978881,1333.71,0.00030136,120]
[380168853,1755589978951,2989.83,0.00030136,120]
[380168854,1755589979481,400.0,0.00030136,120]
[380168855,1755589979674,4897.51,0.00030136,120]
[380168856,1755589979812,9403.1,0.00030136,120]
[380168857,1755589979938,3041.07,0.00030136,120]
[380168858,1755589980699,400.0,0.00030136,120]
[380168859,1755589981043,400.0,0.00030136,120]
[380168861,1755589982744,400.0,0.00030136,120]
[380168862,1755589983197,4000.94,0.00030136,120]
[380168863,1755589983606,400.0,0.00030136,120]
[380168864,1755589984011,400.0,0.00030136,120]
[380168865,1755589984557,400.0,0.00030136,120]
[380168866,1755589984809,3346.33,0.00030136,120]
[380168867,1755589985116,2619.67,0.00030136,120]
[380168868,1755589985278,2854.03,0.00030136,120]
[380168869,1755589985854,756.67,0.00030136,120]
[380168870,1755589986100,427.5,0.00030136,120]
[380168871,1755589986880,3574.53,0.00030136,120]
[380168872,1755589987614,1277.93,0.00030136,120]
[380168873,1755589988588,400.0,0.00030136,120]
[380168874,1755589988743,400.0,0.00030136,120]
[380168875,1755589988810,1290.2,0.00030136,120]
[380168876,1755589988954,2544.0,0.00030136,120]
[380168877,1755589989150,400.0,0.00030136,120]
[380168878,1755589989382,1428.11,0.00030136,120]
[380168879,1755589989476,400.0,0.00030136,120]
[380168880,1755589989549,400.0,0.00030136,120]
[380168881,1755589989618,476.38,0.00030136,120]
[380168882,1755589990419,1769.65,0.00030136,120]
[380168883,1755589990867,400.0,0.00030136,120]
[380168884,1755589991223,400.0,0.00030136,120]
[380168885,1755589991657,3808.92,0.00030136,120]
[380168886,1755589991735,3704.36,0.00030136,120]
[380168887,1755589991897,3736.86,0.00030136,120]
[380168888,1755589991973,6266.46,0.00030136,120]
[380168889,1755589992064,1011.08,0.00030136,120]
[380168890,1755589992340,400.0,0.00030136,120]
[380168891,1755589993713,1940.6,0.00030136,120]
[380168892,1755589993962,400.0,0.00030136,120]
[380168893,1755589994081,2219.22,0.00030136,120]
[380168894,1755589994982,3909.32,0.00030136,120]
[380168895,1755589995064,400.0,0.00030136,120]
[380168896,1755589995574,1461.92,0.00030136,120]
[380168897,1755589995649,469.96,0.00030136,120]
[380168898,1755589996463,500.0,0.00026099,120]
[380168899,1755589996879,4469.43,0.00030136,120]
[380168900,1755589997040,400.0,0.00030136,120]
[380168901,1755589997368,400.0,0.00030136,120]
[380168902,1755589997601,400.0,0.00030136,120]
[380168903,1755589998043,400.0,0.00030136,120]
[380168904,1755589998123,535.66,0.00030136,120]
[380168905,1755589998201,3294.64,0.00030136,120]
[380168906,1755589999176,7244.74,0.00030136,120]
[380168907,1755589999385,400.0,0.00030136,120]
[380168908,1755589999605,400.0,0.00030136,120]
[380168909,1755589999834,2823.29,0.00030136,120]
[380168910,1755589999893,4031.32,0.00030136,120]
[380168911,1755590000067,400.0,0.00030136,120]
[380168912,1755590000580,400.0,0.00030136,120]
[380168913,1755590000694,2249.29,0.00030136,120]
[380168914,1755590001038,400.0,0.00030136,120]
[380168915,1755590001765,3898.46,0.00030136,120]
[380168916,1755590001933,400.0,0.00030136,120]
[380168917,1755590001985,1845.26,0.00030136,120]
[380168918,1755590002350,400.0,0.00030136,120]
[380168919,1755590002927,992.44,0.00030136,120]
[380168920,1755590002969,400.0,0.00030136,120]
[380168921,1755590003032,2284.23,0.00030136,120]
[380168922,1755590003333,2089.28,0.00030136,120]
[380168923,1755590003585,2202.82,0.00030136,120]
[380168924,1755590003701,400.0,0.00030136,120]
[380168925,1755590005655,2103.43,0.00030136,120]
[380168926,1755590005757,400.0,0.00030136,120]
[380168927,1755590005884,5949.26,0.00030136,120]
[380168928,1755590006255,400.0,0.00030136,120]
[380168929,1755590007018,2246.35,0.00030136,120]
[380168930,1755590007559,400.0,0.00030136,120]
[380168931,1755590007766,2438.0,0.00030136,120]
[380168932,1755590008265,400.0,0.00030136,120]
[380168933,1755590008433,400.0,0.00030136,120]
[380168934,1755590008886,1112.1,0.00030136,120]
[380168935,1755590009003,2798.1,0.00030136,120]
[380168936,1755590009712,2798.4,0.00030136,120]
[380168937,1755590010051,888.27,0.00030136,120]
[380168938,1755590010192,2306.02,0.00030136,120]
[380168939,1755590011000,3144.24,0.00030136,120]
[380168940,1755590011933,2067.61,0.00030136,120]
[380168941,1755590012656,401.59,0.00030136,120]
[380168942,1755590012765,400.0,0.00030136,120]
[380168943,1755590012935,400.0,0.00030136,120]
[380168944,1755590013296,2213.44,0.00030136,120]
[380168945,1755590014246,6512.64,0.00030136,120]
[380168946,1755590014479,400.0,0.00030136,120]
[380168947,1755590014775,400.0,0.00030136,120]
[380168948,1755590014885,893.4,0.00030136,120]
[380168949,1755590015081,400.0,0.00030136,120]
[380168950,1755590015176,7422.23,0.00030136,120]
[380168951,1755590015634,467.39,0.00030136,120]
[380168952,1755590015757,3998.93,0.00030136,120]
[380168953,1755590015827,1521.45,0.00030136,120]
[380168954,1755590015977,400.0,0.00030136,120]
[380168955,1755590016173,400.0,0.00030136,120]
[380168956,1755590016477,3427.9,0.00030136,120]
[380168957,1755590016560,400.0,0.00030136,120]
[380168958,1755590017193,2340.48,0.00030136,120]
[380168959,1755590017294,2627.65,0.00030136,120]
[380168960,1755590017721,500.0,0.00030137,120]
[380168961,1755590017803,1053.61,0.00030136,120]
[380168962,1755590017861,400.0,0.00030136,120]
[380168963,1755590018197,5669.99,0.00030136,120]
[380168964,1755590018269,1291.68,0.00030136,120]
[380168965,1755590018529,12437.74,0.00030136,120]
[380168966,1755590018608,400.0,0.00030136,120]
[380168967,1755590018691,1950.05,0.00030136,120]
[380168968,1755590019476,400.0,0.00030136,120]
[380168969,1755590019564,508.78,0.00030136,120]
[380168970,1755590020943,997.07,0.00030136,120]
[380168971,1755590021832,666.3,0.00030136,120]
[380168972,1755590021891,400.0,0.00030136,120]
[380168973,1755590022373,400.0,0.00030136,120]
[380168974,1755590022414,400.0,0.00030136,120]
[380168975,1755590022921,400.0,0.00030136,120]
[380168976,1755590023774,1607.66,0.00030136,120]
[380168977,1755590023993,1354.79,0.00030136,120]
[380168978,1755590024878,510.01,0.00030136,120]
[380168979,1755590026096,2573.66,0.00030136,120]
[380168980,1755590026547,2826.37,0.00030136,120]
[380168981,1755590026588,2152.76,0.00030136,120]
[380168982,1755590026738,5444.12,0.00030136,120]
[380168983,1755590026783,2493.41,0.00030136,120]
[380168984,1755590026950,10618.25,0.00030136,120]
[380168985,1755590026995,400.0,0.00030136,120]
[380168986,1755590027108,917.96,0.00030136,120]
[380168987,1755590027240,400.0,0.00030136,120]
[380168988,1755590027315,8478.95,0.00030136,120]
[380168989,1755590027405,400.0,0.00030136,120]
[380168990,1755590028383,400.0,0.00030136,120]
[380168991,1755590028779,1519.03,0.00030136,120]
[380168992,1755590029694,1824.66,0.00030136,120]
[380168993,1755590030237,400.0,0.00030136,120]
[380168994,1755590030282,1365.79,0.00030136,120]
[380168995,1755590030644,400.0,0.00030136,120]
[380168996,1755590030730,981.99,0.00030136,120]
[380168997,1755590032301,1444.0,0.00029041,120]
[380168998,1755590033041,400.0,0.00030136,120]
[380168999,1755590033292,400.0,0.00030136,120]
[380169000,1755590033385,400.0,0.00030136,120]
[380169001,1755590034036,832.58705637,0.00030136,120]
[380169012,1755590788136,166.27,7.694e-05,2]
[380169025,1755591031754,-226.73405234,9.567e-05,2]
[380169026,1755591031764,-547.19124885,9.567e-05,2]
[380169028,1755591032075,-477.93930329,9.567e-05,2]
[380169029,1755591032088,-888.0,9.567e-05,2]
[380169030,1755591032100,-417.49656767,9.567e-05,2]
[380169031,1755591032112,-169.37288019,9.567e-05,2]
[380169032,1755591032122,-643.55631981,9.568e-05,2]
[380169085,1755591038000,-2034.24368019,9.568e-05,2]
[380169086,1755591038010,-2405.75631981,9.692e-05,2]
[380169312,1755591040616,-94.24368019,9.692e-05,2]
[380169314,1755591040626,-437.91,9.768e-05,2]
[380169316,1755591040635,-160.09024004,9.773e-05,2]
[380169318,1755591040645,-2500.0,9.774e-05,2]
[380169320,1755591040654,-953.75607977,9.781e-05,2]
[380169322,1755591040665,-713.15138334,9.781e-05,2]
[380169324,1755591040677,-333.09253689,9.781e-05,2]
[380169326,1755591040686,-468.70371541,9.794e-05,2]
[380169346,1755591040864,-731.29628459,9.794e-05,2]
[380169348,1755591040873,-300.0,9.795e-05,2]
[380169350,1755591040883,-170.0,9.836e-05,7]
[380169352,1755591040892,-1000.0,9.882e-05,2]
[380169354,1755591040901,-9719.81,9.882e-05,2]
[380169356,1755591040910,-500.25405125,9.999e-05,7]
[380169359,1755591040920,-151.0,0.0001,2]
[380169361,1755591040929,-4159.94,0.00010037,2]
[380169363,1755591040939,-150.0,0.000101,2]
[380169365,1755591040948,-458.43483364,0.00010145,2]
[380169367,1755591040958,-331.92,0.00010192,2]
[380169369,1755591040967,-202.63,0.00010291,2]
[380169371,1755591040977,-200.67,0.00010291,2]
[380169373,1755591040986,-202.75,0.00010291,2]
[380169375,1755591040996,-300.84,0.00010361,2]
[380169377,1755591041006,-150.0,0.00010448,2]
[380169379,1755591041015,-277.35679052,0.00010449,2]
[380169381,1755591041025,-160.0,0.00010449,2]
[380169383,1755591041034,-2880.39445324,0.00010449,2]
[380169385,1755591041043,-300.0,0.00010449,2]
[380169387,1755591041052,-1000.0,0.00010449,2]
[380169389,1755591041061,-1000.0,0.00010449,2]
[380169391,1755591041071,-224.25678737,0.00010449,2]
[380169393,1755591041080,-282.083,0.00010451,2]
[380169395,1755591041090,-6091.0,0.00010451,2]
[380169397,1755591041099,-4152.0,0.00010451,2]
[380169399,1755591041108,-1172.0,0.00010451,2]
[380169401,1755591041118,-894.0,0.00010451,2]
[380169403,1755591041127,-201.19,0.00010469,2]
[380169405,1755591041137,-301.57,0.00010469,2]
[380169407,1755591041147,-203.12,0.00010469,2]
[380169409,1755591041156,-200.35,0.00010469,2]
[380169411,1755591041165,-5000.0,0.000105,2]
[380169413,1755591041175,-843.87140665,0.00010507,2]
[380169415,1755591041184,-2500.0,0.00010523,2]
[380169417,1755591041194,-203.43,0.00010676,2]
[380169420,1755591041205,-200.7,0.00010676,2]
[380169422,1755591041214,-305.81,0.00010676,2]
[380169424,1755591041223,-201.33,0.00010676,2]
[380169426,1755591041233,-2029.0,0.00010677,2]
[380169428,1755591041243,-904.0,0.00010677,2]
[380169430,1755591041252,-3371.0,0.00010677,2]
[380169432,1755591041261,-1255.0,0.00010677,2]
[380169434,1755591041270,-1297.0,0.00010677,2]
[380169436,1755591041280,-599.0,0.00010677,2]
[380169438,1755591041289,-1656.0,0.00010677,2]
[380169440,1755591041298,-566.0,0.00010677,2]
[380169442,1755591041308,-2000.0,0.00010745,2]
[380169444,1755591041318,-2500.0,0.00010745,2]
[380169446,1755591041328,-7327.7751349,0.0001077,2]
[380169448,1755591041338,-31581.3082522,0.0001077,2]
[380169450,1755591041348,-782.0,0.00010773,2]
[380169452,1755591041357,-171.76,0.00010831,2]
[380169454,1755591041366,-5000.0,0.000109,2]
[380169456,1755591041376,-252.186703,0.000109,2]
[380169458,1755591041386,-169.09400402,0.000109,2]
[380169460,1755591041395,-343.73728868,0.000109,2]
[380169462,1755591041404,-500.0,0.00010973,2]
[380169464,1755591041414,-514.94763564,0.00010973,2]
[380169466,1755591041423,-500.0,0.00010973,2]
[380169468,1755591041432,-500.0,0.00010973,2]
[380169470,1755591041442,-500.0,0.00010973,2]
[380169472,1755591041451,-3097.60616528,0.00010984,2]
[380169474,1755591041460,-298.79619155,0.00010986,2]
[380169476,1755591041469,-150.0,0.00010986,2]
[380169478,1755591041478,-150.0,0.00010986,2]
[380169481,1755591041488,-174.63715813,0.0001099,2]
[380169483,1755591041498,-269.94728537,0.00010998,2]
[380169485,1755591041507,-65485.6853381,0.00010998,2]
[380169487,1755591041519,-11928.57049263,0.00010998,2]
[380169489,1755591041533,-690.95277598,0.00010998,2]
[380169676,1755591043214,-212.02104404,0.00010496,2]
[380169678,1755591043224,-12837.5209962,0.00010998,2]
[380169680,1755591043235,-7261.41414418,0.00010998,2]
[380169690,1755591043320,-383.0431476,0.00010998,2]
[380169692,1755591043333,-1087.34876115,0.00010998,2]
[380169941,1755591045760,-313.06330969,0.00010998,2]
[380169953,1755591045855,-485.62832996,0.00010998,2]
[380169967,1755591045979,-11026.45312007,0.00010998,2]
[380169969,1755591045990,-1308.71858145,0.00010998,2]
[380169980,1755591046088,-341.49253213,0.00010998,2]
[380169983,1755591046101,-267.777,0.00010998,2]
[380169985,1755591046112,-4174.8922687,0.00010998,2]
[380170216,1755591151275,150.0,0.00019363,120]
[380170222,1755591511495,150.0,0.00021484,120]
[380170224,1755591556049,-41668.02,9.753e-05,2]
[380170225,1755591614447,1631.87,9.617e-05,2]
[380170226,1755591630976,150.0,0.00018424,120]
[380170227,1755591702002,162.97,9.613e-05,2]
[380170228,1755591719640,162.26,7.716e-05,2]
[380170237,1755591811757,150.0,0.00019286,120]
[380170238,1755591866817,661.21,9.635e-05,2]
[380170241,1755591980342,2530.8,9.621e-05,2]
[380170244,1755592111272,150.0,0.00017138,120]
[380170249,1755592127464,150.0,9e-05,2]
[380170250,1755592146545,1000.0,9.614e-05,2]
[380170251,1755592175303,3000.0,9.52e-05,2]
[380170252,1755592175425,1300.0,9.52e-05,2]
[380170253,1755592175879,2400.0,9.52e-05,2]
[380170265,1755592231904,-268.79784143,9.767e-05,2]
[380170267,1755592231916,-410.18768663,9.767e-05,2]
[380170269,1755592231928,-1321.01447194,9.767e-05,2]
[380170271,1755592231937,-2500.0,9.768e-05,2]
[380170272,1755592231947,-250.0,9.768e-05,2]
[380170273,1755592231957,-185.47,9.787e-05,2]
[380170274,1755592231966,-348.47964009,9.809e-05,2]
[380170275,1755592231980,-542.59072795,9.809e-05,2]
[380170276,1755592232047,-1608.92963196,9.809e-05,2]
[380170277,1755592232058,-170.0,9.836e-05,7]
[380170278,1755592232068,-865.0,9.887e-05,2]
[380170279,1755592232078,-289.0,9.887e-05,2]
[380170280,1755592232088,-150.0,9.888e-05,2]
[380170281,1755592232098,-150.0,9.888e-05,2]
[380170282,1755592232108,-150.0,9.888e-05,2]
[380170283,1755592232117,-150.0,9.888e-05,2]
[380170284,1755592232127,-150.0,9.888e-05,2]
[380170285,1755592232136,-150.0,9.888e-05,2]
[380170286,1755592232145,-150.0,9.888e-05,2]
[380170287,1755592232155,-162.51060358,9.888e-05,2]
[380170288,1755592232164,-150.0,9.888e-05,2]
[380170289,1755592232173,-233.01995604,9.888e-05,2]
[380170290,1755592232182,-150.0,9.888e-05,2]
[380170291,1755592232192,-218.95,9.888e-05,2]
[380170292,1755592232201,-150.0,0.00010096,2]
[380170293,1755592232211,-151.0,0.00010097,2]
[380170294,1755592232221,-151.0,0.00010097,2]
[380170295,1755592232230,-151.0,0.00010097,2]
[380170296,1755592232244,-151.0,0.00010097,2]
[380170297,1755592232255,-151.0,0.00010097,2]
[380170298,1755592232265,-151.0,0.00010097,2]
[380170299,1755592232279,-151.0,0.00010097,2]
[380170300,1755592232289,-151.0,0.00010097,2]
[380170301,1755592232304,-151.0,0.00010097,2]
[380170302,1755592232314,-151.0,0.00010097,2]
[380170303,1755592232323,-151.0,0.00010097,2]
[380170304,1755592232333,-151.0,0.00010097,2]
[380170306,1755592232342,-151.0,0.00010097,2]
[380170309,1755592232351,-151.0,0.00010097,2]
[380170310,1755592232361,-151.0,0.00010097,2]
[380170312,1755592232370,-151.0,0.00010097,2]
[380170314,1755592232381,-151.0,0.00010097,2]
[380170315,1755592232391,-151.0,0.00010097,2]
[380170316,1755592232400,-500.0,0.00010097,2]
[380170318,1755592232410,-151.0,0.00010097,2]
[380170320,1755592232419,-151.0,0.00010097,2]